bitfinex-derivatives/quotes_BTCF0:USTF0_20210409
["timestamp","ask_amount","ask_price","bid_price","bid_amount"]
[1617954824247,3.75414446,57911.0,57910.0,0.27]
[1617954824448,3.75414446,57911.0,57909.0,0.27]
[1617954824648,1.36979998,57910.0,57909.0,0.27]
[1617954828858,1.36979998,57910.0,57909.0,3.8021]
[1617954829257,0.67414936,57910.0,57909.0,3.8021]
[1617954830058,0.92039269,57910.0,57909.0,3.8021]
[1617954830561,0.67414936,57910.0,57909.0,3.8021]
[1617954831592,0.67414936,57910.0,57909.0,0.27]
[1617954831810,0.67414936,57910.0,57909.0,0.47]
[1617954831991,0.30644081,57910.0,57909.0,0.77593264]
[1617954832563,0.36766566,57911.0,57909.0,0.77593264]
[1617954832564,0.01031172,57911.0,57909.0,1.14281287]
[1617954832768,0.01031172,57911.0,57909.0,2.29088287]
[1617954832962,0.01031172,57911.0,57909.0,1.29088287]
[1617954833166,0.01031146,57913.0,57910.0,1.73387354]
[1617954833464,0.01030677,57916.0,57911.0,0.2]
[1617954833661,0.01030677,57916.0,57911.0,1.47]
[1617954833861,0.01030677,57916.0,57912.0,1.0]
[1617954834063,0.30644503,57916.0,57915.0,0.67225236]
[1617954834262,0.30644503,57916.0,57915.0,0.87225236]
[1617954834566,0.01031354,57916.0,57915.0,1.04190891]
[1617954834763,0.01031354,57916.0,57915.0,3.76200891]
[1617954834965,0.01031354,57916.0,57915.0,3.82355742]
[1617954835564,0.01031354,57916.0,57915.0,3.46558817]
[1617954835867,0.01031344,57917.0,57915.0,3.46558817]
[1617954836164,0.01031344,57917.0,57915.0,0.74548817]
[1617954836366,0.01031344,57917.0,57916.0,4.37839138]
[1617954836565,0.01031344,57917.0,57916.0,4.57839138]
[1617954836765,0.01031344,57917.0,57916.0,4.84839138]
[1617954837166,0.30644418,57917.0,57916.0,4.84839138]
[1617954838070,0.01031328,57917.0,57916.0,4.84839138]
[1617954839072,0.01031312,57918.0,57916.0,4.84839138]
[1617954839572,0.01031312,57918.0,57917.0,0.73392941]
[1617954839770,0.01031312,57918.0,57917.0,0.93392941]
[1617954840071,0.01031291,57919.0,57917.0,1.20392941]
[1617954840871,0.01031275,57920.0,57918.0,0.73396365]
[1617954841073,0.01031275,57920.0,57919.0,0.2]
[1617954841272,0.01031275,57920.0,57919.0,1.14257736]
[1617954841273,0.3064243,57920.0,57919.0,1.14257736]
[1617954841773,0.3064243,57920.0,57919.0,1.20412179]
[1617954842174,0.3064243,57920.0,57919.0,4.86812179]
[1617954842697,0.01031249,57920.0,57919.0,4.86812179]
[1617954844575,0.01031137,57921.0,57919.0,4.86812179]
[1617954845075,0.01031137,57921.0,57920.0,0.73392514]
[1617954845275,0.01031137,57921.0,57920.0,0.93392514]
[1617954845476,0.30651543,57921.0,57920.0,1.20392514]
[1617954846678,0.30651543,57921.0,57920.0,4.47652514]
[1617954850988,0.30651543,57921.0,57920.0,4.52792514]
[1617954851188,0.27331543,57921.0,57920.0,4.47652514]
[1617954851391,0.44950831,57928.0,57920.0,4.47652514]
[1617954851392,0.33663771,57924.0,57920.0,4.47652514]
[1617954851791,0.33663771,57924.0,57920.0,4.92516701]
[1617954852190,0.44965794,57929.0,57921.0,0.06154193]
[1617954852390,0.44965794,57929.0,57921.0,0.21264193]
[1617954852593,0.44965794,57929.0,57928.0,0.10725655]
[1617954852792,0.44965794,57929.0,57928.0,3.55805655]
[1617954852993,0.69582389,57929.0,57928.0,3.82805655]
[1617954853594,0.24616595,57929.0,57928.0,3.82805655]
[1617954866305,0.24616595,57929.0,57928.0,4.02805655]
[1617954876415,0.22866595,57929.0,57928.0,4.08035655]
[1617954876716,0.59650361,57929.0,57928.0,4.08035655]
[1617954879519,0.59650361,57929.0,57928.0,4.02805655]
[1617954881824,0.90310064,57929.0,57928.0,4.33404202]
[1617954882630,0.90310064,57929.0,57928.0,4.70204341]
[1617954882631,1.3537468,57929.0,57928.0,4.70204341]
[1617954885935,1.3537468,57929.0,57928.0,5.15184159]
[1617954889441,1.3537468,57929.0,57928.0,4.95184159]
[1617954903361,0.10725655,57930.0,57928.0,0.37725655]
[1617954903562,0.7173632,57951.0,57928.0,0.37725655]
[1617954903862,1.12741749,57929.0,57928.0,0.37725655]
[1617954904060,1.12741749,57929.0,57928.0,1.57725655]
[1617954904363,0.67647099,57929.0,57928.0,4.15305655]
[1617954904562,0.92263522,57929.0,57928.0,5.36944644]
[1617954904760,0.92263522,57929.0,57928.0,6.36944644]
[1617954905263,0.92263522,57929.0,57928.0,6.88026187]
[1617954905264,0.67647099,57929.0,57928.0,6.88026187]
[1617954905463,0.67647099,57929.0,57928.0,3.30446187]
[1617954905667,0.64547099,57929.0,57928.0,3.30446187]
[1617954906066,0.30749613,57929.0,57928.0,3.30446187]
[1617954906563,0.01033548,57929.0,57928.0,6.19186187]
[1617954907262,0.3070968,57930.0,57928.0,6.19186187]
[1617954907263,0.15983228,57930.0,57928.0,6.19186187]
[1617954907464,0.42476088,57938.0,57928.0,6.19186187]
[1617954907664,0.29576088,57938.0,57929.0,1.0]
[1617954907965,0.33305169,57974.0,57932.0,1.50940761]
[1617954907966,0.5117858,57946.0,57932.0,1.50940761]
[1617954908164,0.5117858,57946.0,57933.0,0.34425]
[1617954908366,0.51178508,57947.0,57933.0,1.12356215]
[1617954908565,0.51178508,57947.0,57933.0,1.58496215]
[1617954908765,0.51178629,57948.0,57934.0,0.06153468]
[1617954909167,0.51178629,57948.0,57935.0,0.27]
[1617954909368,0.51178629,57948.0,57935.0,0.47]
[1617954909771,0.51177922,57949.0,57936.0,0.06153383]
[1617954910170,0.18200029,57947.0,57937.0,0.27]
[1617954910572,0.18200029,57947.0,57938.0,0.0522]
[1617954910772,0.51182469,57947.0,57946.0,0.10725655]
[1617954910970,0.51182469,57947.0,57946.0,0.24221655]
[1617954911273,0.51182469,57947.0,57946.0,3.32841655]
[1617954912074,0.75798386,57947.0,57946.0,3.32841655]
[1617954912374,0.51182469,57947.0,57946.0,3.32841655]
[1617954912975,0.75798366,57947.0,57946.0,3.32841655]
[1617954915181,0.24615897,57947.0,57946.0,3.32841655]
[1617954916781,0.10515897,57947.0,57946.0,3.32841655]
[1617954916982,0.01501552,57948.0,57946.0,3.32841655]
[1617954917183,0.01311552,57948.0,57946.0,3.32841655]
[1617954917383,0.51180553,57950.0,57946.0,3.32841655]
[1617954917585,0.51111752,57953.0,57946.0,3.32841655]
[1617954917884,0.55000111,57954.0,57946.0,3.32841655]
[1617954918384,0.73074242,57953.0,57946.0,3.32841655]
[1617954918786,0.73074242,57953.0,57952.0,0.10725655]
[1617954918988,0.21962405,57953.0,57952.0,0.10725655]
[1617954919186,0.21962405,57953.0,57952.0,0.37725655]
[1617954923590,0.21962405,57953.0,57952.0,3.66735655]
[1617954928197,0.14613961,57954.0,57952.0,3.66735655]
[1617954928799,0.44973523,57953.0,57952.0,3.66735655]
[1617954931211,0.95723004,57953.0,57952.0,3.66735655]
[1617954940007,0.95723004,57953.0,57952.0,0.37725655]
[1617954940207,4.03983004,57953.0,57952.0,0.37725655]
[1617954940809,1.2298015,57953.0,57952.0,0.37725655]
[1617954941209,1.2298015,57953.0,57952.0,2.90215655]
[1617954941409,0.95723004,57953.0,57952.0,2.90215655]
[1617954943513,0.9961131,57953.0,57952.0,2.90215655]
[1617954947116,1.30284125,57953.0,57952.0,2.90215655]
[1617954949722,1.30284125,57953.0,57952.0,3.20708946]
[1617954950933,0.54637787,57953.0,57952.0,3.20708946]
[1617954951324,0.54637787,57953.0,57952.0,3.57282704]
[1617954952827,0.54637787,57953.0,57952.0,4.02035448]
[1617954953228,0.54637787,57953.0,57952.0,3.57282704]
[1617954954027,0.54637787,57953.0,57952.0,3.46557049]
[1617954954628,0.54637787,57953.0,57952.0,3.91310698]
[1617954955130,0.54637787,57953.0,57952.0,3.57282704]
[1617954956029,0.54637787,57953.0,57952.0,4.02043226]
[1617954961752,0.03888306,57953.0,57952.0,4.02043226]
[1617954962341,0.40708742,57953.0,57952.0,3.57282704]
[1617954963137,0.65126798,57953.0,57952.0,3.57282704]
[1617954964039,1.10130768,57953.0,57952.0,3.20708946]
[1617954964948,1.10130768,57953.0,57952.0,0.68218946]
[1617954965338,4.21560768,57953.0,57952.0,0.68218946]
[1617954966039,4.4863206,57953.0,57952.0,0.68218946]
[1617954966838,1.3720206,57953.0,57952.0,0.68218946]
[1617954967139,1.3720206,57953.0,57952.0,4.29248946]
[1617954967638,1.10130768,57953.0,57952.0,4.65944074]
[1617954970243,1.10130768,57953.0,57952.0,4.29248946]
[1617954971142,1.40839609,57953.0,57952.0,4.29248946]
[1617954972144,1.40839609,57953.0,57952.0,4.18523291]
[1617954972353,1.40839609,57953.0,57952.0,0.57493291]
[1617954972744,5.54309609,57953.0,57952.0,0.57493291]
[1617954972944,6.05485262,57953.0,57952.0,0.27]
[1617954973343,6.32870249,57953.0,57950.0,0.3060671]
[1617954973545,5.32870249,57953.0,57950.0,0.3060671]
[1617954973742,6.32870249,57953.0,57952.0,0.27]
[1617954973943,3.28083961,57953.0,57949.0,0.31613375]
[1617954974142,3.28083961,57953.0,57951.0,0.27]
[1617954974343,4.28083961,57953.0,57952.0,0.27]
[1617954974544,4.78083961,57953.0,57950.0,0.01]
[1617954974758,4.78083961,57953.0,57946.0,0.79384314]
[1617954974759,3.7926544,57953.0,57946.0,0.4875]
[1617954974944,6.339221,57953.0,57952.0,0.27]
[1617954975146,0.14367603,57952.0,57951.0,0.01]
[1617954975344,0.14367603,57952.0,57946.0,0.4875]
[1617954975545,0.14367603,57952.0,57948.0,0.26]
[1617954975745,2.05713185,57952.0,57951.0,0.01]
[1617954975945,2.05713185,57952.0,57946.0,0.4875]
[1617954976248,4.05085093,57952.0,57951.0,0.01]
[1617954976647,1.63794419,57947.0,57946.0,0.4875]
[1617954977048,1.63794419,57947.0,57946.0,0.4975]
[1617954977247,1.74520074,57947.0,57946.0,0.4975]
[1617954977449,1.23336877,57947.0,57946.0,0.4975]
[1617954977849,1.28576877,57947.0,57946.0,0.4975]
[1617954978048,1.37684289,57947.0,57946.0,0.4975]
[1617954978649,2.37684289,57947.0,57946.0,0.4975]
[1617954979249,1.37684289,57947.0,57946.0,0.4975]
[1617954979850,2.37684289,57947.0,57946.0,0.4975]
[1617954980251,2.88812029,57947.0,57946.0,0.4975]
[1617954980751,1.88812029,57947.0,57946.0,0.4975]
[1617954981151,2.37684289,57947.0,57946.0,0.4975]
[1617954981551,2.88812316,57947.0,57946.0,0.4975]
[1617954987466,2.37684289,57947.0,57946.0,0.4975]
[1617954987860,2.65208917,57947.0,57946.0,0.4975]
[1617954988859,1.10725655,57947.0,57946.0,0.4975]
[1617954989162,2.23206355,57947.0,57946.0,0.4975]
[1617954989358,1.10795655,57947.0,57946.0,0.4975]
[1617954989559,2.23206395,57947.0,57946.0,0.4975]
[1617954990162,1.10795655,57947.0,57946.0,0.4975]
[1617954990562,2.74302762,57947.0,57946.0,0.4975]
[1617954990961,2.43642625,57947.0,57946.0,0.4975]
[1617954996266,2.48882625,57947.0,57946.0,0.4975]
[1617954996466,2.43642625,57947.0,57946.0,0.4975]
[1617954997302,2.43642625,57947.0,57946.0,3.89025655]
[1617954998093,1.43642625,57947.0,57946.0,3.89025655]
[1617954998474,0.92549209,57947.0,57946.0,3.89025655]
[1617954999769,1.06242125,57947.0,57946.0,3.89025655]
[1617955000970,1.06242125,57947.0,57946.0,0.60475655]
[1617955001170,1.06242125,57947.0,57946.0,4.19105655]
[1617955002370,0.61278692,57947.0,57946.0,4.19105655]
[1617955003071,1.0623006,57947.0,57946.0,4.19105655]
[1617955003671,0.95504405,57947.0,57946.0,4.0838]
[1617955004173,0.61278692,57947.0,57946.0,4.19105655]
[1617955005176,1.06230312,57947.0,57946.0,4.19105655]
[1617955012789,1.06230312,57947.0,57946.0,4.31182655]
[1617955014087,1.06230312,57947.0,57946.0,0.60475655]
[1617955017291,1.33008887,57947.0,57946.0,0.60475655]
[1617955021997,1.84268434,57947.0,57946.0,1.28103572]
[1617955022196,2.84268434,57947.0,57946.0,1.28103572]
[1617955022396,1.84268434,57947.0,57946.0,1.28103572]
[1617955022596,2.84268434,57947.0,57946.0,1.28103572]
[1617955022999,2.84268434,57947.0,57946.0,0.91215617]
[1617955023298,1.84268434,57947.0,57946.0,0.91215617]
[1617955023698,1.84268434,57947.0,57946.0,3.94383617]
[1617955023999,1.57489859,57947.0,57946.0,4.31274921]
[1617955030712,2.57489859,57947.0,57946.0,4.31274921]
[1617955031011,1.57489859,57947.0,57946.0,4.31274921]
[1617955032611,2.57489859,57947.0,57946.0,4.31274921]
[1617955033214,1.57489859,57947.0,57946.0,4.31274921]
[1617955041324,1.06230312,57947.0,57946.0,4.31274921]
[1617955042727,1.573334,57947.0,57946.0,4.31274921]
[1617955045029,1.573334,57947.0,57946.0,1.41374921]
[1617955045430,4.422934,57947.0,57946.0,1.41374921]
[1617955046032,2.95755655,57947.0,57946.0,0.73743655]
[1617955046330,2.95755655,57947.0,57946.0,0.60475655]
[1617955046531,4.28589618,57947.0,57946.0,1.28130924]
[1617955048030,1.43629618,57947.0,57946.0,1.28130924]
[1617955048233,1.43629618,57947.0,57946.0,4.10920924]
[1617955048832,1.43629618,57947.0,57946.0,1.28130924]
[1617955049032,4.51159618,57947.0,57946.0,1.28130924]
[1617955049234,4.63874841,57947.0,57946.0,1.28130924]
[1617955049632,4.90323175,57947.0,57946.0,1.28130924]
[1617955050533,1.82793175,57947.0,57946.0,1.28130924]
[1617955050735,1.82793175,57947.0,57946.0,4.64780924]
[1617955051134,1.56344841,57947.0,57946.0,4.64780924]
[1617955054638,2.56344841,57947.0,57946.0,4.64780924]
[1617955054838,1.56344841,57947.0,57946.0,4.64780924]
[1617955055141,2.56344841,57947.0,57946.0,4.64780924]
[1617955057640,1.56344841,57947.0,57946.0,4.64780924]
[1617955058040,2.56344841,57947.0,57946.0,4.64780924]
[1617955059441,2.56344841,57947.0,57946.0,1.28130924]
[1617955059641,5.90304841,57947.0,57946.0,1.28130924]
[1617955060243,6.16879869,57947.0,57946.0,1.28130924]
[1617955061745,6.22069869,57947.0,57946.0,1.28130924]
[1617955061944,6.16879869,57947.0,57946.0,1.28130924]
[1617955064945,6.06154214,57947.0,57946.0,1.17405269]
[1617955065445,6.16879869,57947.0,57946.0,1.28130924]
[1617955066751,6.21989869,57947.0,57946.0,1.28130924]
[1617955066951,6.16879869,57947.0,57946.0,1.28130924]
[1617955069753,5.16879869,57947.0,57946.0,1.28130924]
[1617955073758,5.16879869,57947.0,57946.0,1.17405269]
[1617955079366,5.30364869,57947.0,57946.0,1.17405269]
[1617955079769,1.96404869,57947.0,57946.0,1.17405269]
[1617955079969,1.96404869,57947.0,57946.0,4.64695269]
[1617955080471,1.69829841,57947.0,57946.0,4.64695269]
[1617955080770,1.56344841,57947.0,57946.0,4.64695269]
[1617955086580,1.56344841,57947.0,57946.0,1.17405269]
[1617955087182,4.40204841,57947.0,57946.0,1.17405269]
[1617955087886,5.66557412,57947.0,57946.0,1.17405269]
[1617955089887,4.66557412,57947.0,57946.0,1.17405269]
[1617955090087,5.66557412,57947.0,57946.0,1.17405269]
[1617955090288,1.82697412,57947.0,57946.0,1.17405269]
[1617955090491,2.82697412,57947.0,57946.0,1.17405269]
[1617955090891,1.82697412,57947.0,57946.0,4.87015269]
[1617955091093,2.56344841,57947.0,57946.0,4.50112395]
[1617955091595,1.56344841,57947.0,57946.0,4.87036292]
[1617955093697,2.56344841,57947.0,57946.0,4.87036292]
[1617955095997,1.56344841,57947.0,57946.0,4.87036292]
[1617955096399,2.56344841,57947.0,57946.0,4.87036292]
[1617955098203,1.56344841,57947.0,57946.0,4.87036292]
[1617955098601,2.56344841,57947.0,57946.0,4.87036292]
[1617955099204,1.56344841,57947.0,57946.0,4.87036292]
[1617955099404,1.56344841,57947.0,57946.0,1.17426292]
[1617955099604,4.40704841,57947.0,57946.0,1.17426292]
[1617955100104,5.66868614,57947.0,57946.0,1.17426292]
[1617955100404,4.66868614,57947.0,57946.0,1.17426292]
[1617955101504,5.66868614,57947.0,57946.0,1.17426292]
[1617955101803,4.66868614,57947.0,57946.0,1.17426292]
[1617955102706,5.66868614,57947.0,57946.0,1.17426292]
[1617955103807,4.66868614,57947.0,57946.0,1.17426292]
[1617955104007,4.66868614,57947.0,57946.0,4.54566292]
[1617955104008,1.82508614,57947.0,57946.0,4.54566292]
[1617955105008,1.56344841,57947.0,57946.0,4.54566292]
[1617955106309,1.05256427,57947.0,57946.0,4.99688403]
[1617955107610,1.05256427,57947.0,57946.0,5.10414058]
[1617955113919,0.60297397,57947.0,57946.0,5.10414058]
[1617955126232,0.60297397,57947.0,57946.0,5.30414058]
[1617955132941,0.23510878,57947.0,57946.0,5.30414058]
[1617955133341,0.10795655,57947.0,57946.0,5.30414058]
[1617955137648,0.10795655,57947.0,57946.0,5.81586419]
[1617955138048,0.10795655,57947.0,57946.0,5.30414058]
[1617955139250,0.10795655,57947.0,57946.0,5.81586017]
[1617955140852,0.0007,57947.0,57946.0,5.81586017]
[1617955141852,0.0007,57947.0,57946.0,2.44446017]
[1617955144063,0.36803702,57959.0,57946.0,2.44446017]
[1617955144254,0.33112727,57961.0,57946.0,2.44446017]
[1617955144663,0.10725655,57963.0,57960.0,0.30633856]
[1617955144954,0.10725655,57963.0,57961.0,0.35376]
[1617955145154,0.71549827,57990.0,57961.0,0.35376]
[1617955145155,0.44976193,57970.0,57962.0,0.30620381]
[1617955145407,0.44976193,57970.0,57963.0,0.651]
[1617955145561,0.44976193,57970.0,57963.0,0.921]
[1617955145756,0.51107916,57975.0,57969.0,0.10725655]
[1617955145757,0.44975625,57973.0,57969.0,0.10725655]
[1617955145968,0.44975625,57973.0,57969.0,0.30725655]
[1617955146166,0.55700562,57975.0,57972.0,0.30605247]
[1617955146567,0.55700562,57975.0,57974.0,0.30611756]
[1617955146772,0.55700562,57975.0,57974.0,0.44274756]
[1617955146959,0.55700562,57975.0,57974.0,0.45274756]
[1617955147459,0.44970302,57976.0,57974.0,0.45274756]
[1617955147859,0.44970302,57976.0,57975.0,0.4131612]
[1617955148059,0.10725655,57977.0,57975.0,0.4131612]
[1617955148258,0.10725655,57977.0,57975.0,0.6831612]
[1617955148759,0.10725655,57977.0,57976.0,0.2]
[1617955148960,0.10725655,57977.0,57976.0,0.50590009]
[1617955149159,0.10725655,57977.0,57976.0,0.77590009]
[1617955155767,0.02109918,57977.0,57976.0,0.77590009]
[1617955157794,0.02109918,57977.0,57976.0,1.22415262]
[1617955157989,0.24167779,57993.0,57976.0,1.22415262]
[1617955157990,0.55730294,57983.0,57976.0,1.22415262]
[1617955158369,0.55730294,57983.0,57982.0,3.144]
[1617955158570,0.55730294,57983.0,57982.0,3.4498911]
[1617955158769,0.55730294,57983.0,57982.0,3.7198911]
[1617955159081,0.10725655,57983.0,57982.0,3.414]
[1617955159878,0.10725655,57983.0,57982.0,3.52125655]
[1617955160471,0.44815702,57991.0,57982.0,3.52125655]
[1617955160694,0.50925524,57996.0,57982.0,0.51262655]
[1617955160881,0.45628778,57997.0,57983.0,0.2]
[1617955161148,0.1226781,58006.0,57983.0,0.2]
[1617955161286,0.89587216,58049.0,57996.0,3.3411]
[1617955161494,0.42131112,58042.0,57996.0,0.12584]
[1617955161712,0.89587216,58049.0,58024.0,0.30240872]
[1617955161876,0.27078994,58067.0,58024.0,0.30240872]
[1617955161877,0.27078994,58067.0,58045.0,0.10725655]
[1617955162088,0.27078994,58067.0,58045.0,0.23750655]
[1617955162277,0.10725655,58071.0,58045.0,0.24750655]
[1617955162478,3.3523,58046.0,58045.0,0.24750655]
[1617955162977,0.10725655,58071.0,58066.0,3.158]
[1617955163180,0.10725655,58071.0,58066.0,0.13613]
[1617955163478,0.10725655,58071.0,58070.0,2.6713]
[1617955163878,0.10725655,58071.0,58070.0,2.9413]
[1617955166081,0.30725655,58071.0,58070.0,0.27]
[1617955166391,0.10725655,58071.0,58070.0,0.27]
[1617955166680,0.10725655,58071.0,58065.0,0.27]
[1617955166879,0.10725655,58071.0,58070.0,0.27]
[1617955167079,0.10725655,58071.0,58048.0,0.30107409]
[1617955167280,0.10725655,58071.0,58070.0,0.01]
[1617955167683,0.10725655,58071.0,58051.0,0.30093]
[1617955167881,0.14,58079.0,58057.0,0.10725655]
[1617955168082,0.14,58079.0,58073.0,3.6345]
[1617955168482,0.14,58079.0,58074.0,0.26]
[1617955169283,1.64,58079.0,58074.0,0.26]
[1617955169683,2.9112,58075.0,58074.0,0.26]
[1617955169984,2.9112,58075.0,58058.0,0.27]
[1617955169985,2.82195655,58075.0,58058.0,0.27]
[1617955170186,0.10725655,58075.0,58074.0,0.27]
[1617955170385,0.10725655,58075.0,58074.0,3.4278]
[1617955170586,0.10725655,58075.0,58074.0,3.1578]
[1617955170786,0.10725655,58075.0,58074.0,3.4278]
[1617955171588,0.10725655,58075.0,58074.0,0.27]
[1617955172088,2.7806,58075.0,58065.0,0.27]
[1617955172387,2.7806,58075.0,58074.0,0.26]
[1617955172588,2.88785655,58075.0,58066.0,0.01]
[1617955172792,0.10725655,58075.0,58066.0,0.01]
[1617955172989,0.10725655,58075.0,58065.0,0.10725655]
[1617955173190,0.10725655,58075.0,58071.0,3.367]
[1617955173689,0.10725655,58075.0,58072.0,0.27]
[1617955176193,3.62635,58073.0,58072.0,0.27]
[1617955176393,3.62635,58073.0,58066.0,0.27]
[1617955176793,3.62635,58073.0,58072.0,0.27]
[1617955176994,3.62635,58073.0,58066.0,0.27]
[1617955177193,3.62635,58073.0,58072.0,0.27]
[1617955177694,3.62635,58073.0,58066.0,0.27]
[1617955177996,3.62635,58073.0,58072.0,0.27]
[1617955178195,3.62635,58073.0,58067.0,0.27]
[1617955178397,0.12055,58073.0,58067.0,0.27]
[1617955178597,0.12055,58073.0,58072.0,0.26]
[1617955178797,0.22780655,58073.0,58068.0,0.01]
[1617955179003,0.22780655,58073.0,58054.0,0.10725655]
[1617955179199,0.22780655,58073.0,58055.0,0.01]
[1617955179400,0.22780655,58073.0,58069.0,0.27]
[1617955179699,0.22780655,58073.0,58054.0,0.10725655]
[1617955179908,0.22780655,58073.0,58070.0,0.27]
[1617955180199,0.10725655,58073.0,58055.0,0.01]
[1617955180410,0.10725655,58073.0,58057.0,0.26]
[1617955180607,0.10725655,58073.0,58071.0,0.27]
[1617955180808,0.10725655,58073.0,58055.0,0.01]
[1617955181009,0.10725655,58073.0,58058.0,0.26]
[1617955181206,0.10725655,58073.0,58072.0,0.27]
[1617955181412,0.10725655,58073.0,58060.0,0.14224]
[1617955181600,0.10725655,58073.0,58072.0,0.1114]
[1617955181804,0.10725655,58073.0,58072.0,0.3814]
[1617955182005,0.10725655,58073.0,58072.0,0.1114]
[1617955182401,0.10725655,58073.0,58072.0,0.3814]
[1617955186205,0.10725655,58073.0,58037.0,0.14394]
[1617955186506,1.23,58072.0,58036.0,0.4672]
[1617955186705,0.2,58071.0,58067.0,0.01]
[1617955186907,0.2,58071.0,58038.0,0.10725655]
[1617955187327,0.2,58071.0,58068.0,0.26]
[1617955187506,0.2,58071.0,58038.0,0.10725655]
[1617955187907,0.2,58071.0,58069.0,0.27]
[1617955188109,0.2,58071.0,58043.0,0.09326]
[1617955188408,0.2,58071.0,58070.0,0.27]
[1617955188809,0.2,58071.0,58045.0,0.10725655]
[1617955189009,0.2,58071.0,58070.0,0.27]
[1617955189409,0.2,58071.0,58049.0,0.14684]
[1617955189610,0.2,58072.0,58070.0,0.01]
[1617955189810,0.2,58072.0,58049.0,0.14684]
[1617955189811,0.19,58070.0,58050.0,0.27]
[1617955190210,0.10725655,58073.0,58071.0,0.01]
[1617955190412,0.10725655,58073.0,58071.0,0.10499]
[1617955190714,0.10725655,58073.0,58072.0,0.26]
[1617955191313,0.10725655,58073.0,58071.0,0.12496]
[1617955191713,0.10725655,58073.0,58072.0,0.27]
[1617955191940,0.10725655,58073.0,58071.0,0.12496]
[1617955192336,0.10725655,58073.0,58072.0,0.27]
[1617955193522,0.10725655,58073.0,58072.0,0.7234]
[1617955201223,0.10725655,58073.0,58072.0,0.4534]
[1617955203727,6.10725655,58073.0,58050.0,0.10725655]
[1617955204025,0.10725655,58073.0,58050.0,0.10725655]
[1617955204924,0.10725655,58051.0,58050.0,0.10725655]
[1617955205426,0.10725655,58051.0,58050.0,0.37725655]
[1617955205825,0.10725655,58051.0,58033.0,0.29838847]
[1617955206625,0.10725655,58051.0,58034.0,0.27]
[1617955206826,1.7,58074.0,58038.0,0.10725655]
[1617955207227,1.7,58074.0,58072.0,0.0007]
[1617955208928,0.10725655,58073.0,58072.0,0.0007]
[1617955209127,1.80725655,58073.0,58072.0,0.0007]
[1617955209329,1.80725655,58073.0,58039.0,0.27]
[1617955209631,0.0517,58072.0,58039.0,0.27]
[1617955210428,0.44457108,58072.0,58039.0,0.27]
[1617955210629,1.7,58071.0,58039.0,0.27]
[1617955211128,0.10725655,58040.0,58039.0,0.27]
[1617955218638,0.10725655,58040.0,58039.0,1.38096186]
[1617955222339,0.10725655,58040.0,58039.0,0.93657712]
[1617955222941,0.10725655,58040.0,58039.0,1.38065871]
[1617955225544,0.10795655,58040.0,58039.0,1.38065871]
[1617955227549,0.10795655,58040.0,58039.0,0.93657712]
[1617955227851,0.10795655,58040.0,58039.0,1.38052478]
[1617955228850,0.10795655,58040.0,58039.0,0.93657712]
[1617955229250,0.0007,58040.0,58039.0,1.38060584]
[1617955229551,0.0007,58040.0,58039.0,0.93657712]
[1617955229752,0.10795655,58040.0,58039.0,0.93657712]
[1617955232054,0.12420143,58057.0,58039.0,0.93657712]
[1617955232055,0.44960165,58042.0,58039.0,0.93657712]
[1617955232454,0.44959491,58046.0,58041.0,0.66542541]
[1617955232854,0.44959491,58046.0,58042.0,0.27]
[1617955233154,0.51088938,58051.0,58045.0,0.30245311]
[1617955233455,0.51089121,58050.0,58045.0,0.30245311]
[1617955233957,0.55685327,58046.0,58045.0,0.30245311]
[1617955234858,0.55685327,58046.0,58044.0,0.30256233]
[1617955235258,0.44959806,58045.0,58044.0,0.30256233]
[1617955235656,0.44959806,58045.0,58044.0,0.57256233]
[1617955239865,0.44959806,58045.0,58044.0,0.27]
[1617955240067,0.44959806,58045.0,58044.0,0.57259698]
[1617955240267,0.44959806,58045.0,58044.0,0.30259698]
[1617955240570,0.44959806,58045.0,58044.0,0.57259698]
[1617955241067,0.44959806,58045.0,58044.0,0.27]
[1617955241566,0.44959806,58045.0,58043.0,0.30261322]
[1617955241764,0.44959806,58045.0,58044.0,0.27]
[1617955245468,0.44959806,58045.0,58044.0,0.2707]
[1617955245867,0.44959806,58045.0,58044.0,0.0007]
[1617955246268,0.44959806,58045.0,58044.0,0.2707]
[1617955246868,0.55685461,58045.0,58044.0,0.2707]
[1617955247670,0.60785461,58045.0,58044.0,0.2707]
[1617955247870,0.10725655,58045.0,58044.0,0.2707]
[1617955248072,0.55683697,58045.0,58044.0,0.2707]
[1617955252077,0.44958042,58045.0,58044.0,0.2707]
[1617955252679,0.96068641,58045.0,58044.0,0.2707]
[1617955252880,1.06794296,58045.0,58044.0,0.2707]
[1617955256686,0.55683697,58045.0,58044.0,0.2707]
[1617955256888,0.10725655,58045.0,58044.0,0.2707]
[1617955257192,1.06811932,58045.0,58044.0,0.2707]
[1617955261594,2.06811932,58045.0,58044.0,0.2707]
[1617955263995,1.96086277,58045.0,58044.0,0.2707]
[1617955264896,2.06811932,58045.0,58044.0,0.2707]
[1617955266202,8.75195932,58045.0,58044.0,0.2707]
[1617955266902,9.77022581,58045.0,58044.0,0.2707]
[1617955267402,9.97022581,58045.0,58044.0,0.2707]
[1617955269204,9.97022581,58045.0,58044.0,0.2195]
[1617955270706,9.97022581,58045.0,58044.0,0.21847525]
[1617955271007,10.68563956,58045.0,58044.0,0.21847525]
[1617955271808,9.97022581,58045.0,58044.0,0.21847525]
[1617955273913,10.68565059,58045.0,58044.0,0.21347525]
[1617955276015,10.48565059,58045.0,58044.0,0.21347525]
[1617955276614,10.68565059,58045.0,58044.0,0.21347525]
[1617955277316,10.68565059,58045.0,58044.0,0.21117525]
[1617955278219,9.97022581,58045.0,58044.0,0.21117525]
[1617955278921,9.97022581,58045.0,58044.0,0.18517525]
[1617955280624,9.77022581,58045.0,58044.0,0.18517525]
[1617955281427,0.052,58044.0,58027.0,0.4597]
[1617955281927,0.95874235,58028.0,58027.0,0.4597]
[1617955282127,2.45874235,58028.0,58027.0,0.4597]
[1617955282327,2.45874235,58028.0,58027.0,0.7297]
[1617955283128,2.51064235,58028.0,58027.0,0.7297]
[1617955283329,2.66339992,58028.0,58027.0,0.7297]
[1617955283629,8.66339992,58028.0,58027.0,0.7297]
[1617955283842,8.15343709,58028.0,58027.0,0.7297]
[1617955284043,8.26069364,58028.0,58027.0,0.7297]
[1617955284431,8.7706585,58028.0,58027.0,0.7297]
[1617955285931,7.2706585,58028.0,58027.0,0.7297]
[1617955286232,2.2706585,58028.0,58027.0,0.7297]
[1617955286834,7.2706585,58028.0,58027.0,0.7297]
[1617955287733,2.2706585,58028.0,58027.0,0.7297]
[1617955287933,7.2706585,58028.0,58027.0,0.7297]